lending/lending_fUSD_20240621
["ID","MTS","AMOUNT","RATE_DAILY","PERIOD"]
[330032769,1718956547247,-168.34,0.000327,31]
[330032770,1718956547270,-168.34,0.000327,31]
[330032771,1718956547293,-168.34,0.000327,31]
[330032772,1718956547321,-441.59528132,0.00032876,30]
[330032773,1718956547346,-806.33,0.00032876,120]
[330032774,1718956547370,-806.33,0.00032876,120]
[330032775,1718956547395,-806.33,0.00032876,120]
[330032776,1718956547422,-806.33,0.00032876,120]
[330032777,1718956547448,-806.33,0.00032876,120]
[330032778,1718956547473,-806.33,0.00032876,120]
[330032779,1718956547496,-806.33,0.00032876,120]
[330032780,1718956547520,-806.33,0.00032876,120]
[330032781,1718956547543,-806.33,0.00032876,120]
[330032782,1718956547568,-806.33,0.00032876,120]
[330032783,1718956547590,-806.33,0.00032876,120]
[330032784,1718956547614,-806.33,0.00032876,120]
[330032785,1718956547637,-806.33,0.00032876,120]
[330032786,1718956547660,-806.33,0.00032876,120]
[330032787,1718956547682,-806.33,0.00032876,120]
[330032788,1718956547709,-806.33,0.00032876,120]
[330032789,1718956547732,-806.33,0.00032876,120]
[330032790,1718956547755,-806.33,0.00032876,120]
[330032791,1718956547778,-806.33,0.00032876,120]
[330032792,1718956547806,-806.33,0.00032876,120]
[330032793,1718956547830,-806.33,0.00032876,120]
[330032794,1718956547853,-806.33,0.00032876,120]
[330032795,1718956547876,-806.33,0.00032876,120]
[330032796,1718956547902,-806.38,0.00032876,120]
[330032797,1718956547928,-205.79253287,0.00032877,60]
[330032798,1718956547954,-168.34,0.000329,31]
[330032799,1718956547977,-159.08364748,0.00033,120]
[330032800,1718956548000,-251.65373079,0.00033,30]
[330032801,1718956548026,-500.0,0.00033,120]
[330032802,1718956548050,-3000.0,0.00033,30]
[330032803,1718956548076,-10148.05005897,0.00033,90]
[330032804,1718956548100,-150.0,0.00033079,120]
[330032805,1718956548124,-150.0,0.00033098,120]
[330032806,1718956548148,-168.34,0.000331,31]
[330032807,1718956548173,-150.0,0.00033128,120]
[330032808,1718956548196,-287.39,0.00033151,120]
[330032809,1718956548396,-150.0,0.00033188,120]
[330032810,1718956548438,-300.0,0.00033287,120]
[330032811,1718956548462,-168.34,0.000333,31]
[330032812,1718956548485,-150.0,0.00033308,120]
[330032813,1718956548508,-1484.74765,0.000335,30]
[330032814,1718956548531,-168.34,0.000335,31]
[330032815,1718956548559,-150.0,0.00033737,120]
[330032816,1718956548582,-1000.0,0.00034,120]
[330032817,1718956548604,-500.0,0.00034,120]
[330032818,1718956548627,-661.2581938,0.00034,120]
[330032819,1718956548650,-1000.0,0.00034,120]
[330032820,1718956548673,-150.0,0.00034462,120]
[330032821,1718956548697,-306.37363905,0.00034693,120]
[330032822,1718956548720,-150.0,0.00034797,120]
[330032823,1718956548744,-600.0,0.00034874,31]
[330032824,1718956548769,-200.0,0.00035,120]
[330032825,1718956548794,-1394.22987419,0.00035,30]
[330032826,1718956548821,-500.0,0.00035,120]
[330032827,1718956548843,-1000.0,0.00035,30]
[330032828,1718956548868,-1000.0,0.00035,30]
[330032829,1718956548891,-1000.0,0.00035,30]
[330032830,1718956548914,-1000.0,0.00035,30]
[330032831,1718956548938,-1000.0,0.00035,30]
[330032832,1718956548962,-1000.0,0.00035,30]
[330032833,1718956548985,-1000.0,0.00035,30]
[330032834,1718956549007,-1000.0,0.00035,30]
[330032835,1718956549029,-1000.0,0.00035,30]
[330032836,1718956549051,-1000.0,0.00035,30]
[330032837,1718956549075,-1000.0,0.00035,30]
[330032838,1718956549097,-1000.0,0.00035,30]
[330032839,1718956549120,-1000.0,0.00035,30]
[330032840,1718956549143,-1000.0,0.00035,30]
[330032841,1718956549166,-1000.0,0.00035,30]
[330032842,1718956549189,-1000.0,0.00035,30]
[330032843,1718956549214,-1000.0,0.00035,30]
[330032844,1718956549236,-1000.0,0.00035,30]
[330032845,1718956549258,-1000.0,0.00035,30]
[330032846,1718956549281,-1000.0,0.00035,30]
[330032847,1718956549304,-1000.0,0.00035,30]
[330032848,1718956549330,-1000.0,0.00035,30]
[330032849,1718956549352,-1000.0,0.00035,30]
[330032850,1718956549375,-1000.0,0.00035,30]
[330032851,1718956549398,-1000.0,0.00035,30]
[330032852,1718956549421,-1000.0,0.00035,30]
[330032853,1718956549444,-1000.0,0.00035,30]
[330032854,1718956549467,-1000.0,0.00035,30]
[330032855,1718956549491,-1000.0,0.00035,30]
[330032856,1718956549513,-1000.0,0.00035,30]
[330032857,1718956549537,-944.36651653,0.00035,30]
[330032858,1718956549563,-2000.0,0.00035,30]
[330032859,1718956549588,-150.0,0.00035066,120]
[330032860,1718956549613,-150.0,0.00035099,120]
[330032861,1718956549638,-150.0,0.00035217,120]
[330032862,1718956549663,-150.0,0.00035259,120]
[330032863,1718956549687,-150.0,0.0003546,120]
[330032864,1718956549711,-150.0,0.00035569,120]
[330032865,1718956549734,-200.0,0.00035616,60]
[330032866,1718956549758,-3000.0,0.000358,61]
[330032867,1718956549782,-1000.0,0.00036,120]
[330032868,1718956549808,-500.0,0.00036,120]
[330032869,1718956549831,-3000.0,0.00036,30]
[330032870,1718956549856,-428.82,0.00036129,30]
[330032871,1718956549883,-150.0,0.00036264,120]
[330032872,1718956549910,-371.186912,0.000368,30]
[330032873,1718956549937,-150.0,0.00036812,120]
[330032874,1718956549965,-150.0,0.00036996,120]
[330032875,1718956549989,-1500.01965525,0.00037,30]
[330032876,1718956550013,-500.0,0.00037,120]
[330032877,1718956550039,-1090.0,0.00037,120]
[330032878,1718956550064,-150.0,0.00037162,120]
[330032879,1718956550087,-150.0,0.00037226,120]
[330032880,1718956550121,-150.0,0.00037475,120]
[330032881,1718956550151,-150.0,0.00037554,120]
[330032882,1718956550176,-2006.50410384,0.000378,70]
[330032883,1718956550201,-150.0,0.0003781,120]
[330032884,1718956550225,-1045.792,0.00037873,30]
[330032885,1718956550249,-87633.0918469,0.0003788,30]
[330032886,1718956550273,-409.41908897,0.00037886,90]
[330032887,1718956550299,-150.0,0.00037886,120]
[330032888,1718956550324,-150.0,0.00037963,120]
[330032889,1718956550349,-21096.33497689,0.00038,30]
[330032890,1718956550374,-1812.78111485,0.00038,30]
[330032891,1718956550399,-300.18859442,0.00038,120]
[330032892,1718956550422,-2569.0,0.00038,60]
[330032893,1718956550447,-1000.0,0.00038,120]
[330032894,1718956550470,-500.0,0.00038,120]
[330032895,1718956550496,-150.0,0.00038246,120]
[330032896,1718956550522,-150.0,0.00038254,120]
[330032897,1718956550547,-150.0,0.00038299,120]
[330032898,1718956550574,-203.3089409,0.00038356,60]
[330032899,1718956550601,-414.26027467,0.000384,33]
[330032900,1718956550626,-678.2351107,0.000384,120]
[330032901,1718956550651,-150.0,0.00038728,120]
[330032902,1718956550675,-3189.2752807,0.000388,45]
[330032903,1718956550700,-5114.10009645,0.000388,35]
[330032904,1718956550725,-34000.0,0.000389,30]
[330032905,1718956550750,-946.83840469,0.000389,30]
[330032906,1718956550774,-545.60138141,0.00038987,31]
[330032907,1718956550802,-500.0,0.00039,120]
[330032908,1718956550834,-39643.49061073,0.00039,30]
[330032909,1718956550861,-1352.41055718,0.00039,120]
[330032910,1718956550888,-500.0,0.00039,120]
[330032911,1718956550915,-1278.13227385,0.00039,30]
[330032912,1718956550942,-151.0,0.00039,38]
[330032913,1718956550968,-566.14459702,0.000394,30]
[330032914,1718956550996,-150.0,0.00039555,120]
[330032915,1718956551359,-472.93645694,0.000397,60]
[330032916,1718956551383,-500.0,0.00039726,100]
[330032917,1718956551410,-500.0,0.00039726,100]
[330032918,1718956551435,-500.0,0.00039726,100]
[330032919,1718956551460,-500.0,0.00039726,100]
[330032920,1718956551483,-500.0,0.00039726,100]
[330032921,1718956551507,-500.0,0.00039726,100]
[330032922,1718956551531,-500.0,0.00039726,100]
[330032923,1718956551556,-500.0,0.00039726,100]
[330032924,1718956551584,-500.0,0.00039726,100]
[330032925,1718956551607,-500.0,0.00039726,100]
[330032926,1718956551630,-500.0,0.00039726,100]
[330032927,1718956551654,-500.0,0.00039726,100]
[330032928,1718956551677,-500.0,0.00039726,100]
[330032929,1718956551702,-500.0,0.00039726,100]
[330032930,1718956551726,-500.0,0.00039726,100]
[330032931,1718956551749,-585.07279324,0.00039726,100]
[330032932,1718956551773,-150.0,0.00039777,120]
[330032933,1718956551797,-407.80291734,0.000398,30]
[330032934,1718956551834,-253.79729302,0.0003985,30]
[330032935,1718956551857,-600.0,0.00039874,45]
[330032936,1718956551884,-463883.15907395,0.000399,30]
[330032937,1718956551908,-421716.42683304,0.000399,30]
[330032938,1718956551932,-231417.79542234,0.000399,30]
[330032939,1718956551956,-2874.97995104,0.000399,30]
[330032940,1718956551981,-28769.66845301,0.000399,30]
[330032941,1718956552005,-3000000.0,0.00039987,120]
[330032942,1718956552028,-2637.17274091,0.00039989,42]
[330032943,1718956552054,-50000.0,0.0004,30]
[330032944,1718956552086,-151.0,0.0004,120]
[330032945,1718956552122,-151.0,0.0004,120]
[330032946,1718956552152,-200.0,0.0004,120]
[330032947,1718956552177,-477.12749073,0.0004,30]
[330032948,1718956552201,-346.64474074,0.0004,30]
[330032949,1718956552226,-726.50837024,0.0004,120]
[330032950,1718956552252,-1076.47621407,0.0004,120]
[330032951,1718956552276,-259.52112728,0.0004,120]
[330032952,1718956552300,-1014.67587517,0.0004,60]
[330032953,1718956552326,-1041.12400102,0.0004,32]
[330032954,1718956552351,-930.83119379,0.0004,30]
[330032955,1718956552374,-958.90265884,0.0004,120]
[330032956,1718956552399,-1000.0,0.0004,120]
[330032957,1718956552423,-250.20555929,0.0004,120]
[330032958,1718956552448,-502.31977842,0.0004,30]
[330032959,1718956552472,-2607.9385608,0.0004,60]
[330032960,1718956552499,-328.631996,0.0004,120]
[330032961,1718956552526,-2592.4369728,0.0004,30]
[330032962,1718956552551,-2172.5514955,0.0004,120]
[330032963,1718956552580,-2500.0,0.0004,120]
[330032964,1718956552605,-18080.19800968,0.0004,120]
[330032965,1718956552637,-159.98172306,0.0004,30]
[330032966,1718956552663,-152.04679631,0.0004,30]
[330032967,1718956552690,-2504.91,0.0004,30]
[330032968,1718956552717,-1677.08822189,0.0004,120]
[330032969,1718956552743,-1500.0,0.0004,30]
[330032970,1718956552770,-500.0,0.0004,120]
[330032971,1718956552803,-500.0,0.0004,120]
[330032972,1718956552831,-500.0,0.0004,120]
[330032973,1718956552859,-500.0,0.0004,120]
[330032974,1718956552891,-500.0,0.0004,120]
[330032975,1718956552918,-500.0,0.0004,120]
[330032976,1718956552944,-500.0,0.0004,120]
[330032977,1718956552970,-260.09,0.0004,120]
[330032978,1718956552996,-19873.86324631,0.0004,30]
[330032979,1718956553022,-336.96711185,0.0004,30]
[330032980,1718956553049,-300.0,0.0004,30]
[330032981,1718956553077,-500.0,0.0004,30]
[330032982,1718956553102,-500.0,0.0004,30]
[330032983,1718956553128,-500.0,0.0004,30]
[330032984,1718956553154,-500.0,0.0004,30]
[330032985,1718956553178,-343.93723842,0.0004,120]
[330032986,1718956553204,-1122.0,0.0004,30]
[330032987,1718956553229,-2441.91,0.0004,30]
[330032988,1718956553254,-158.29949554,0.0004,30]
[330032989,1718956553278,-32738.61487524,0.0004,120]
[330032990,1718956553303,-278.26,0.0004,120]
[330032991,1718956553327,-2500.0,0.0004,120]
[330032992,1718956553353,-361.71,0.0004,120]
[330032993,1718956553377,-1461.85986,0.00040088,30]
[330032994,1718956553401,-880.21122132,0.0004025,120]
[330032995,1718956553427,-1461.85986,0.00040288,30]
[330032996,1718956553453,-1461.85986,0.00040488,30]
[330032997,1718956553479,-154.55,0.00040639,120]
[330032998,1718956553505,-150.0,0.0004067,120]
[330032999,1718956553532,-151.0,0.00040685,120]
[330033000,1718956553558,-1461.85986,0.00040688,30]
[330033001,1718956553584,-2981.0,0.000407,81]
[330033002,1718956553609,-185.593456,0.000408,30]
[330033003,1718956553635,-150.0,0.00040838,120]
[330033004,1718956553663,-207556.37661105,0.000409,30]
[330033005,1718956562014,-360846.49738895,0.000409,30]
[330033006,1718956562039,-150.67554068,0.000409,120]
[330033007,1718956562062,-150.67554066,0.000409,120]
[330033008,1718956562086,-150.67554066,0.000409,120]
[330033009,1718956562110,-150.67554066,0.000409,120]
[330033010,1718956562134,-150.67554066,0.000409,120]
[330033011,1718956562158,-150.67554066,0.000409,120]
[330033012,1718956562182,-150.67554066,0.000409,120]
[330033013,1718956562207,-150.67554066,0.000409,120]
[330033014,1718956562232,-150.67554066,0.000409,120]
[330033015,1718956562256,-779.05937395,0.00040995,120]
[330033016,1718956562280,-496.61613349,0.00040999,40]
[330033017,1718956562303,-202.15098723,0.00040999,40]
[330033018,1718956562326,-237.45384657,0.00040999,40]
[330033019,1718956562352,-827.88343904,0.00040999,40]
[330033020,1718956562376,-3612.4083904,0.00040999,40]
[330033021,1718956562400,-466.96303346,0.00040999,40]
[330033022,1718956562426,-50000.0,0.00041,31]
[330033023,1718956562450,-1123.20042407,0.00041,60]
[330033024,1718956562473,-2500.0,0.00041,120]
[330033025,1718956562496,-3038.09824355,0.00041,120]
[330033026,1718956562524,-267.11175277,0.00041,120]
[330033027,1718956562552,-576.0,0.00041,120]
[330033028,1718956562576,-500.0,0.00041,30]
[330033029,1718956562602,-520.19589835,0.00041,60]
[330033030,1718956562628,-416.28,0.00041,120]
[330033031,1718956562652,-2467.66591963,0.00041,30]
[330033032,1718956562677,-152.0,0.00041041,31]
[330033033,1718956562701,-2517.48356014,0.00041058,120]
[330033034,1718956562724,-1461.85986,0.00041088,30]
[330033035,1718956562748,-500.0,0.00041095,31]
[330033036,1718956562771,-482.84120618,0.00041095,31]
[330033037,1718956562796,-500.0,0.00041095,31]
[330033038,1718956562825,-500.0,0.00041095,31]
[330033039,1718956562848,-500.0,0.00041095,31]
[330033040,1718956562872,-500.0,0.00041095,31]
[330033041,1718956562899,-170.58390145,0.00041095,31]
[330033042,1718956562924,-500.0,0.00041095,31]
[330033043,1718956562949,-500.0,0.00041095,31]
[330033044,1718956562973,-500.0,0.00041095,31]
[330033045,1718956562996,-500.0,0.00041095,31]
[330033046,1718956563021,-500.0,0.00041095,31]
[330033047,1718956563045,-501.12735129,0.00041095,31]
[330033048,1718956563072,-500.0,0.00041095,31]
[330033049,1718956563098,-500.0,0.00041095,31]
[330033050,1718956563124,-500.0,0.00041095,31]
[330033051,1718956563148,-500.0,0.00041095,31]
[330033052,1718956563173,-500.0,0.00041095,31]
[330033053,1718956563198,-500.0,0.00041095,31]
[330033054,1718956563222,-500.0,0.00041095,31]
[330033055,1718956563251,-500.0,0.00041095,31]
[330033056,1718956563275,-500.0,0.00041095,31]
[330033057,1718956563300,-480.76821442,0.00041095,31]
[330033058,1718956563327,-500.0,0.00041095,31]
[330033059,1718956563351,-500.0,0.00041095,31]
[330033060,1718956563374,-560.93685561,0.00041095,31]
[330033061,1718956563397,-510.45344603,0.00041095,31]
[330033062,1718956563422,-500.0,0.00041095,31]
[330033063,1718956563446,-500.0,0.00041095,31]
[330033064,1718956563472,-500.0,0.00041095,31]
[330033065,1718956563498,-500.0,0.00041095,31]
[330033066,1718956563521,-500.0,0.00041095,31]
[330033067,1718956563545,-625.09,0.00041095,31]
[330033068,1718956563571,-500.0,0.00041095,31]
[330033069,1718956563594,-500.0,0.00041095,31]
[330033070,1718956563619,-200.0,0.00041095,31]
[330033071,1718956563643,-500.0,0.00041095,31]
[330033072,1718956563666,-500.0,0.00041095,31]
[330033073,1718956563689,-500.0,0.00041095,31]
[330033074,1718956563712,-520.21671529,0.00041095,31]
[330033075,1718956563736,-500.0,0.00041095,31]
[330033076,1718956563759,-500.0,0.00041095,31]
[330033077,1718956563783,-500.0,0.00041095,31]
[330033078,1718956563810,-500.0,0.00041095,31]
[330033079,1718956563836,-500.0,0.00041095,31]
[330033080,1718956563860,-503.9681817,0.00041095,31]
[330033081,1718956563887,-503.31531661,0.00041095,31]
[330033082,1718956563911,-502.56483355,0.00041095,31]
[330033083,1718956563935,-514.42312347,0.00041095,31]
[330033084,1718956563959,-500.0,0.00041095,31]
[330033085,1718956563982,-500.0,0.00041095,31]
[330033086,1718956564006,-500.0,0.00041095,31]
[330033087,1718956564031,-540.01658974,0.00041095,31]
[330033088,1718956564055,-500.0,0.00041095,31]
[330033089,1718956564081,-394.08439507,0.00041095,31]
[330033090,1718956564107,-500.0,0.00041095,31]
[330033091,1718956564133,-500.0,0.00041095,31]
[330033092,1718956564159,-500.0,0.00041095,31]
[330033093,1718956564184,-500.0,0.00041095,31]
[330033094,1718956564209,-500.0,0.00041095,31]
[330033095,1718956564233,-500.0,0.00041095,31]
[330033096,1718956564258,-500.0,0.00041095,31]
[330033097,1718956564282,-500.0,0.00041095,31]
[330033098,1718956564306,-500.0,0.00041095,31]
[330033099,1718956564334,-500.0,0.00041095,31]
[330033100,1718956564359,-500.0,0.00041095,31]
[330033101,1718956564382,-540.71956645,0.00041095,31]
[330033102,1718956564406,-500.0,0.00041095,31]
[330033103,1718956564431,-500.0,0.00041095,31]
[330033104,1718956564455,-500.0,0.00041095,31]
[330033105,1718956564700,-517.19894602,0.00041095,31]
[330033106,1718956564726,-502.84,0.00041095,31]
[330033107,1718956564749,-500.0,0.00041095,31]
[330033108,1718956564772,-500.0,0.00041095,31]
[330033109,1718956564796,-500.0,0.00041095,31]
[330033110,1718956564826,-500.0,0.00041095,31]
[330033111,1718956564849,-500.0,0.00041095,31]
[330033112,1718956564872,-222.90281604,0.00041095,31]
[330033113,1718956564897,-500.0,0.00041095,31]
[330033114,1718956564921,-500.0,0.00041095,31]
[330033115,1718956564944,-500.0,0.00041095,31]
[330033116,1718956564967,-866.85,0.00041095,31]
[330033117,1718956564992,-509.37594518,0.00041095,31]
[330033118,1718956565016,-500.0,0.00041095,31]
[330033119,1718956565040,-1085.46,0.00041095,31]
[330033120,1718956565063,-517.70845129,0.00041095,31]
[330033121,1718956565088,-503.61795874,0.00041095,31]
[330033122,1718956565111,-500.0,0.00041095,31]
[330033123,1718956565136,-549.79,0.00041095,31]
[330033124,1718956565161,-500.0,0.00041095,31]
[330033125,1718956565185,-500.0,0.00041095,31]
[330033126,1718956565208,-500.0,0.00041095,31]
[330033127,1718956565231,-500.0,0.00041095,31]
[330033128,1718956565255,-500.0,0.00041095,31]
[330033129,1718956565279,-405.43150713,0.00041095,31]
[330033130,1718956565302,-500.0,0.00041095,31]
[330033131,1718956565326,-500.0,0.00041095,31]
[330033132,1718956565349,-500.0,0.00041095,31]
[330033133,1718956565372,-881.41,0.00041095,31]
[330033134,1718956565394,-500.0,0.00041095,31]
[330033135,1718956565417,-500.0,0.00041095,31]
[330033136,1718956565440,-500.0,0.00041095,31]
[330033137,1718956565464,-580.76,0.00041095,31]
[330033138,1718956565488,-500.0,0.00041095,31]
[330033139,1718956565513,-500.0,0.00041095,31]
[330033140,1718956565538,-500.0,0.00041095,31]
[330033141,1718956565563,-500.0,0.00041095,31]
[330033142,1718956565588,-500.0,0.00041095,31]
[330033143,1718956565611,-500.0,0.00041095,31]
[330033144,1718956565634,-249.64833293,0.00041095,31]
[330033145,1718956565658,-500.0,0.00041095,31]
[330033146,1718956565682,-500.0,0.00041095,31]
[330033147,1718956565705,-817.21,0.00041095,31]
[330033148,1718956565730,-867.55,0.00041095,31]
[330033149,1718956565753,-521.77169555,0.00041095,31]
[330033150,1718956565777,-500.0,0.00041095,31]
[330033151,1718956565806,-500.0,0.00041095,31]
[330033152,1718956565831,-500.0,0.00041095,31]
[330033153,1718956565860,-500.0,0.00041095,31]
[330033154,1718956565890,-500.0,0.00041095,31]
[330033155,1718956565916,-500.0,0.00041095,31]
[330033156,1718956565943,-500.0,0.00041095,31]
[330033157,1718956565968,-500.0,0.00041095,31]
[330033158,1718956565993,-500.0,0.00041095,31]
[330033159,1718956566019,-500.0,0.00041095,31]
[330033160,1718956566044,-500.0,0.00041095,31]
[330033161,1718956566067,-500.0,0.00041095,31]
[330033162,1718956566098,-500.96888412,0.00041095,31]
[330033163,1718956566124,-500.0,0.00041095,31]
[330033164,1718956566151,-511.47359974,0.00041095,31]
[330033165,1718956566175,-654.22,0.00041095,31]
[330033166,1718956566199,-500.99563873,0.00041095,31]
[330033167,1718956566223,-500.0,0.00041095,31]
[330033168,1718956566246,-899.77,0.00041095,31]
[330033169,1718956566271,-500.0,0.00041095,31]
[330033170,1718956566296,-500.0,0.00041095,31]
[330033171,1718956566322,-500.0,0.00041095,31]
[330033172,1718956566345,-500.0,0.00041095,31]
[330033173,1718956566368,-500.0,0.00041095,31]
[330033174,1718956566392,-500.0,0.00041095,31]
[330033175,1718956566419,-500.0,0.00041095,31]
[330033176,1718956566443,-500.0,0.00041095,31]
[330033177,1718956566467,-500.0,0.00041095,31]
[330033178,1718956566491,-784.26,0.00041095,31]
[330033179,1718956566516,-500.0,0.00041095,31]
[330033180,1718956566541,-500.0,0.00041095,31]
[330033181,1718956566568,-500.0,0.00041095,31]
[330033182,1718956566595,-500.0,0.00041095,31]
[330033183,1718956566619,-500.0,0.00041095,31]
[330033184,1718956566644,-500.0,0.00041095,31]
[330033185,1718956566669,-500.0,0.00041095,31]
[330033186,1718956566693,-500.83342187,0.00041095,31]
[330033187,1718956566716,-500.0,0.00041095,31]
[330033188,1718956566740,-167.43761142,0.00041095,31]
[330033189,1718956566764,-500.0,0.00041095,31]
[330033190,1718956566787,-500.0,0.00041095,31]
[330033191,1718956566811,-500.0,0.00041095,31]
[330033192,1718956566839,-499.87768721,0.00041095,31]
[330033193,1718956566864,-500.0,0.00041095,31]
[330033194,1718956566892,-500.0,0.00041095,31]
[330033195,1718956566916,-553.33,0.00041095,31]
[330033196,1718956566939,-500.0,0.00041095,31]
[330033197,1718956566964,-609.08,0.00041095,31]
[330033198,1718956566988,-500.0,0.00041095,31]
[330033199,1718956567011,-500.0,0.00041095,31]
[330033200,1718956567034,-500.0,0.00041095,31]
[330033201,1718956567057,-932.71,0.00041095,31]
[330033202,1718956567079,-513.00509238,0.00041095,31]
[330033203,1718956567102,-513.15,0.00041095,31]
[330033204,1718956567126,-496.63425867,0.00041095,31]
[330033205,1718956567149,-309.73472526,0.00041095,31]
[330033206,1718956567173,-631.13,0.00041095,31]
[330033207,1718956567196,-501.81681377,0.00041095,31]
[330033208,1718956567221,-500.0,0.00041095,31]
[330033209,1718956567244,-509.93074962,0.00041095,31]
[330033210,1718956567269,-516.29,0.00041095,31]
[330033211,1718956567499,-500.0,0.00041095,31]
[330033212,1718956567524,-501.08210188,0.00041095,31]
[330033213,1718956567547,-500.0,0.00041095,31]
[330033214,1718956567575,-500.0,0.00041095,31]
[330033215,1718956567598,-500.0,0.00041095,31]
[330033216,1718956567622,-999.25,0.00041095,31]
[330033217,1718956567646,-500.0,0.00041095,31]
[330033218,1718956567670,-500.0,0.00041095,31]
[330033219,1718956567692,-500.0,0.00041095,31]
[330033220,1718956567718,-500.0,0.00041095,31]
[330033221,1718956567744,-500.0,0.00041095,31]
[330033222,1718956567767,-500.0,0.00041095,31]
[330033223,1718956567790,-660.13,0.00041095,31]
[330033224,1718956567818,-827.46,0.00041095,31]
[330033225,1718956567845,-500.0,0.00041095,31]
[330033226,1718956567868,-500.0,0.00041095,31]
[330033227,1718956567894,-500.0,0.00041095,31]
[330033228,1718956567917,-500.0,0.00041095,31]
[330033229,1718956567942,-500.0,0.00041095,31]
[330033230,1718956567965,-500.0,0.00041095,31]
[330033231,1718956567989,-500.0,0.00041095,31]
[330033232,1718956568013,-850.56,0.00041095,31]
[330033233,1718956568036,-625.0,0.00041095,31]
[330033234,1718956568060,-500.22,0.00041095,31]
[330033235,1718956568084,-276.86079997,0.00041095,31]
[330033236,1718956568108,-500.0,0.00041095,30]
[330033237,1718956568132,-500.0,0.00041095,31]
[330033238,1718956568156,-500.0,0.00041095,31]
[330033239,1718956568179,-500.0,0.00041095,31]
[330033240,1718956568204,-500.0,0.00041095,31]
[330033241,1718956568230,-500.0,0.00041095,31]
[330033242,1718956568253,-500.0,0.00041095,31]
[330033243,1718956568276,-500.0,0.00041095,31]
[330033244,1718956568300,-500.0,0.00041095,31]
[330033245,1718956568326,-500.0,0.00041095,31]
[330033246,1718956568350,-532.43526767,0.00041095,31]
[330033247,1718956568374,-500.0,0.00041095,31]
[330033248,1718956568398,-500.0,0.00041095,31]
[330033249,1718956568421,-545.58703336,0.00041095,31]
[330033250,1718956568444,-500.0,0.00041095,31]
[330033251,1718956568466,-500.0,0.00041095,31]
[330033252,1718956568489,-500.0,0.00041095,31]
[330033253,1718956568511,-500.56269375,0.00041095,31]
[330033254,1718956568535,-500.0,0.00041095,31]
[330033255,1718956568558,-500.0,0.00041095,31]
[330033256,1718956568581,-500.0,0.00041095,31]
[330033257,1718956568603,-500.0,0.00041095,31]
[330033258,1718956568626,-1258.76,0.00041095,31]
[330033259,1718956568649,-500.0,0.00041095,31]
[330033260,1718956568671,-500.0,0.00041095,31]
[330033261,1718956568698,-500.0,0.00041095,31]
[330033262,1718956568721,-500.0,0.00041095,31]
[330033263,1718956568742,-500.0,0.00041095,31]
[330033264,1718956568764,-1056.3,0.00041095,31]
[330033265,1718956568787,-547.66,0.00041095,31]
[330033266,1718956568813,-500.0,0.00041095,31]
[330033267,1718956568835,-500.0,0.00041095,31]
[330033268,1718956568857,-619.91,0.00041095,31]